bitfinex/quotes_BTCUSD_20240729
["timestamp","ask_amount","ask_price","bid_price","bid_amount"]
[1722269565946,1.99425514,67986.0,67985.0,0.000924]
[1722269566153,2.11729174,67986.0,67985.0,0.000924]
[1722269566411,0.05,67961.0,67960.0,0.00401171]
[1722269566612,0.05,67962.0,67960.0,0.1471111]
[1722269566882,0.07906587,67962.0,67961.0,0.14309939]
[1722269567230,0.294271,67965.0,67959.0,0.14999999]
[1722269567231,0.27621087,67960.0,67959.0,0.14999999]
[1722269567432,0.69281368,67960.0,67959.0,0.14999999]
[1722269567546,0.69925684,67960.0,67959.0,0.14999999]
[1722269568009,0.25782184,67960.0,67959.0,0.14999999]
[1722269568216,0.13550903,67960.0,67959.0,0.29309938]
[1722269569027,0.42979903,67960.0,67959.0,0.17299999]
[1722269569226,1.05444439,67960.0,67959.0,0.14999999]
[1722269569583,1.04900123,67960.0,67959.0,0.16399999]
[1722269569989,1.12400123,67960.0,67959.0,0.14999999]
[1722269570193,1.12500123,67960.0,67959.0,0.15799999]
[1722269570820,0.83071123,67960.0,67959.0,0.15799999]
[1722269571458,0.41411087,67960.0,67959.0,0.15799999]
[1722269571666,0.82972102,67960.0,67959.0,0.14999999]
[1722269571860,1.12401102,67960.0,67959.0,0.14999999]
[1722269572082,0.83072102,67960.0,67959.0,0.15799999]
[1722269572487,0.38928602,67960.0,67959.0,0.18099999]
[1722269572713,0.83072102,67960.0,67959.0,0.15799999]
[1722269572914,1.41930102,67960.0,67959.0,0.15799999]
[1722269573322,1.12501102,67960.0,67959.0,0.15799999]
[1722269573678,1.12601102,67960.0,67959.0,0.15999999]
[1722269573981,1.12756522,67960.0,67959.0,0.15999999]
[1722269574196,1.12601102,67960.0,67959.0,0.15999999]
[1722269574804,1.42185522,67960.0,67959.0,0.15999999]
[1722269575048,1.42030102,67960.0,67959.0,0.15999999]
[1722269575458,1.12601102,67960.0,67959.0,0.15999999]
[1722269575657,1.12501102,67960.0,67959.0,0.15199999]
[1722269576035,1.41930102,67960.0,67959.0,0.15199999]
[1722269576654,0.39953102,67960.0,67959.0,0.31809938]
[1722269576987,1.13251102,67960.0,67959.0,0.15199999]
[1722269577132,1.13151102,67960.0,67959.0,0.14999999]
[1722269577533,1.42580102,67960.0,67959.0,0.14999999]
[1722269578143,1.55033443,67960.0,67959.0,0.14999999]
[1722269578343,1.55033443,67960.0,67959.0,0.15092399]
[1722269578344,1.70874888,67960.0,67959.0,0.15092399]
[1722269578540,1.58642407,67960.0,67959.0,0.15092399]
[1722269578890,1.75876572,67960.0,67959.0,0.15092399]
[1722269579063,1.94459827,67960.0,67959.0,0.15092399]
[1722269579308,2.10541324,67960.0,67959.0,0.15092399]
[1722269579616,1.75972252,67960.0,67959.0,0.15092399]
[1722269579747,1.80972252,67960.0,67959.0,0.15092399]
[1722269579944,1.80972252,67960.0,67959.0,0.15192399]
[1722269580392,1.75972252,67960.0,67959.0,0.15192399]
[1722269580755,1.76772252,67960.0,67959.0,0.15192399]
[1722269581173,1.76772252,67960.0,67947.0,0.15009999]
[1722269581174,0.17906587,67948.0,67947.0,0.15009999]
[1722269581320,0.17906587,67948.0,67927.0,0.14999999]
[1722269581321,0.78683087,67940.0,67927.0,0.14999999]
[1722269581523,0.57065687,67936.0,67927.0,0.14999999]
[1722269581739,0.17626287,67936.0,67927.0,0.21099999]
[1722269581900,0.30738494,67936.0,67927.0,0.21099999]
[1722269582088,0.36466738,67936.0,67935.0,0.30220738]
[1722269582287,0.44372511,67936.0,67935.0,0.30220738]
[1722269582483,0.31162363,67936.0,67935.0,0.30220738]
[1722269582706,0.28327867,67936.0,67935.0,0.30220738]
[1722269583084,0.28327867,67936.0,67935.0,0.32520738]
[1722269583527,0.1542128,67936.0,67935.0,0.47240638]
[1722269583859,0.1542128,67936.0,67935.0,0.76680538]
[1722269584104,0.1542128,67936.0,67935.0,1.56538425]
[1722269584307,0.14547714,67936.0,67935.0,1.56538425]
[1722269584539,0.14547714,67936.0,67935.0,1.66538425]
[1722269584716,0.02309073,67936.0,67935.0,1.66538425]
[1722269585258,0.0015542,67951.0,67950.0,0.1]
[1722269585466,0.0015542,67951.0,67950.0,0.40919939]
[1722269585467,0.12387207,67951.0,67950.0,0.40919939]
[1722269585666,0.12387207,67951.0,67950.0,0.87163452]
[1722269585667,0.12950481,67951.0,67950.0,0.87163452]
[1722269585872,0.12231787,67951.0,67950.0,1.46030252]
[1722269586078,0.005,67960.0,67959.0,0.16808113]
[1722269586317,0.005,67960.0,67959.0,0.67222226]
[1722269586525,0.005,67960.0,67959.0,1.18116081]
[1722269586712,0.005,67960.0,67959.0,1.50391226]
[1722269586713,0.15036208,67960.0,67959.0,1.50391226]
[1722269586915,0.02807979,67960.0,67959.0,1.50391226]
[1722269587121,0.02807979,67960.0,67959.0,1.20961726]
[1722269587280,0.02807979,67960.0,67959.0,1.50391226]
[1722269587487,0.005,67960.0,67959.0,1.86975081]
[1722269587759,0.005,67960.0,67959.0,1.87191226]
[1722269588397,0.005,67960.0,67959.0,1.94345581]
[1722269588621,0.005,67960.0,67959.0,1.94545581]
[1722269588802,0.005,67960.0,67959.0,2.23975081]
[1722269589003,0.005,67960.0,67959.0,1.94545581]
[1722269589250,0.04907481,67982.0,67979.0,0.294207]
[1722269589430,0.12225998,67981.0,67980.0,0.210702]
[1722269589583,0.12225998,67981.0,67980.0,0.504906]
[1722269589784,0.05084,67986.0,67980.0,0.504906]
[1722269589785,0.12225722,67985.0,67980.0,0.0636]
[1722269590026,0.12225722,67985.0,67981.0,0.31512913]
[1722269590216,0.12225722,67985.0,67984.0,0.147093]
[1722269590449,0.12225722,67985.0,67984.0,0.170093]
[1722269590649,0.14533027,67985.0,67984.0,0.92249852]
[1722269590859,0.12225722,67985.0,67984.0,0.92249852]
[1722269591069,0.00084,67986.0,67984.0,0.92249852]
[1722269591070,0.00084,67986.0,67985.0,0.56220713]
[1722269591295,0.00084,67986.0,67985.0,1.31667052]
[1722269591466,0.00084,67986.0,67985.0,1.84777052]
[1722269591847,0.00084,67986.0,67985.0,2.14195252]
[1722269592247,0.00084,67986.0,67985.0,1.84777052]
[1722269592866,0.00084,67986.0,67985.0,2.14195252]
[1722269593153,0.05229011,68013.0,67985.0,2.14195252]
[1722269593154,0.05229011,68013.0,68010.0,0.1]
[1722269593322,0.05229011,68013.0,68011.0,0.16903964]
[1722269593323,0.12220689,68012.0,68011.0,0.16903964]
[1722269593467,0.10084,68013.0,68011.0,0.16609939]
[1722269593666,0.12220872,68012.0,68011.0,0.16609939]
[1722269594081,0.19527381,68012.0,68011.0,0.16609939]
[1722269594333,0.14527381,68012.0,68011.0,0.16609939]
[1722269594545,0.12220872,68012.0,68011.0,0.16609939]
[1722269594879,0.17220872,68012.0,68011.0,0.16609939]
[1722269595094,0.12220872,68012.0,68011.0,0.16609939]
[1722269595775,0.17220872,68012.0,68011.0,0.16609939]
[1722269596191,0.25127459,68012.0,68011.0,0.16609939]
[1722269596695,0.25127719,68012.0,68011.0,0.16609939]
[1722269597392,0.17221132,68012.0,68011.0,0.16609939]
[1722269597592,0.12906587,68012.0,68011.0,0.16609939]
[1722269597731,0.27433993,68012.0,68011.0,0.16609939]
[1722269597947,0.15213075,68012.0,68011.0,0.16609939]
[1722269598377,0.05213075,68012.0,68011.0,0.16609939]
[1722269598763,0.15213075,68012.0,68011.0,0.16609939]
[1722269600895,0.15313075,68012.0,68011.0,0.18009939]
[1722269601094,0.15213075,68012.0,68011.0,0.16609939]
[1722269601826,0.05213075,68012.0,68011.0,0.16609939]
[1722269602032,0.10213075,68012.0,68011.0,0.16609939]
[1722269602425,0.10313075,68012.0,68011.0,0.17709939]
[1722269602561,0.15313075,68012.0,68011.0,0.17709939]
[1722269602761,0.15213075,68012.0,68011.0,0.16609939]
[1722269603781,0.13006587,68012.0,68011.0,0.17209939]
[1722269603979,0.25228213,68012.0,68011.0,0.17209939]
[1722269604190,0.12906587,68012.0,68011.0,0.16609939]
[1722269604440,0.2512813,68012.0,68011.0,0.16609939]
[1722269604636,0.2512813,68012.0,67987.0,0.102]
[1722269604637,0.57022787,68002.0,68001.0,0.1]
[1722269604835,0.05,67995.0,67994.0,0.1]
[1722269605083,0.05,67995.0,67994.0,0.24309939]
[1722269605480,0.05,67997.0,67994.0,0.24309939]
[1722269605618,0.05,67995.0,67994.0,0.1]
[1722269605819,0.05,67997.0,67994.0,0.1]
[1722269606022,0.05,67997.0,67995.0,0.023]
[1722269606242,0.05,67998.0,67995.0,0.023]
[1722269606243,0.05,67996.0,67995.0,0.023]
[1722269606484,0.05,67996.0,67995.0,0.16609939]
[1722269606717,0.0730694,67996.0,67995.0,0.16609939]
[1722269606928,0.05,67988.0,67987.0,0.1]
[1722269607155,0.05,67988.0,67987.0,0.24309939]
[1722269607362,0.27614987,67988.0,67987.0,0.14309939]
[1722269607804,0.57031887,67988.0,67987.0,0.14309939]
[1722269608125,0.71565031,67988.0,67987.0,0.14309939]
[1722269608372,0.71565031,67988.0,67980.0,0.1]
[1722269608373,0.197099,67981.0,67980.0,0.1]
[1722269608579,0.197099,67981.0,67980.0,0.24309939]
[1722269608580,0.05,67981.0,67980.0,0.24309939]
[1722269608787,0.05,67981.0,67980.0,0.14309939]
[1722269608788,0.69263109,67981.0,67980.0,0.14309939]
[1722269609199,0.22227107,67981.0,67980.0,0.14309939]
[1722269609423,0.17227107,67981.0,67980.0,0.14309939]
[1722269609837,0.05,67981.0,67980.0,0.14309939]
[1722269610050,0.17226457,67981.0,67980.0,0.14309939]
[1722269610495,0.17226457,67981.0,67980.0,0.16609939]
[1722269610697,0.17481877,67981.0,67980.0,0.18009939]
[1722269611099,0.32191777,67981.0,67980.0,0.18009939]
[1722269611297,0.69362844,67981.0,67980.0,0.18009939]
[1722269611910,0.98882744,67981.0,67980.0,0.18509939]
[1722269612108,0.86656287,67981.0,67980.0,0.18509939]
[1722269612313,0.27641605,67981.0,67980.0,0.18509939]
[1722269612556,0.19735018,67981.0,67980.0,0.18509939]
[1722269613308,0.19735018,67981.0,67980.0,0.18602339]
[1722269613746,0.14735018,67981.0,67980.0,0.72732939]
[1722269613957,0.14735018,67981.0,67980.0,1.18606752]
[1722269614546,0.1242744,67981.0,67980.0,1.18606752]
[1722269614752,0.1242744,67981.0,67980.0,1.58227152]
[1722269614971,0.002,67981.0,67980.0,1.87647552]
[1722269615228,0.002,67981.0,67980.0,1.58227152]
[1722269615811,0.001,67981.0,67980.0,1.57727152]
[1722269616013,0.04959559,67994.0,67993.0,0.1]
[1722269616187,0.04959559,67994.0,67993.0,0.30984613]
[1722269616389,0.12223201,67994.0,67993.0,0.30984613]
[1722269616631,0.12223201,67994.0,67993.0,1.04521313]
[1722269616838,0.7945,68003.0,67993.0,1.04521313]
[1722269616839,0.05146029,68001.0,68000.0,0.12093413]
[1722269617038,0.05146029,68003.0,68002.0,0.02093413]
[1722269617235,0.12221607,68003.0,68002.0,0.77524952]
[1722269617482,0.12221607,68006.0,68005.0,0.147048]
[1722269617765,0.05230029,68012.0,68011.0,0.147035]
[1722269617914,0.12304448,68012.0,68011.0,0.62795113]
[1722269618115,0.12304448,68012.0,68011.0,0.65095113]
[1722269618345,0.12303811,68012.0,68011.0,0.65095113]
[1722269618518,0.12303811,68012.0,68011.0,0.35688113]
[1722269619017,0.12303811,68012.0,68011.0,0.20984613]
[1722269619837,0.12303811,68012.0,68011.0,0.35688113]
[1722269620692,0.12303811,68012.0,68011.0,0.65095113]
[1722269620982,0.14610182,68012.0,68011.0,0.96595526]
[1722269622274,0.12303466,68012.0,68011.0,0.23078026]
[1722269622592,0.12303466,68012.0,68011.0,0.68588526]
[1722269623154,0.12303466,68012.0,68011.0,0.65613852]
[1722269624705,0.1230354,68012.0,68011.0,0.65613852]
[1722269624934,0.14609912,68012.0,68011.0,0.65613852]
[1722269625373,0.14609912,68012.0,68011.0,0.95020852]
[1722269625591,0.14609912,68012.0,68011.0,1.24427852]
[1722269625795,0.14609912,68012.0,68011.0,1.65234852]
[1722269625997,0.1230354,68012.0,68011.0,1.65234852]
[1722269626172,0.00084,68013.0,68012.0,1.11376113]
[1722269626385,0.00084,68013.0,68012.0,2.03681631]
[1722269626823,0.00084,68013.0,68012.0,1.74275131]
[1722269627167,0.00084,68013.0,68012.0,1.75675131]
[1722269628358,0.00084,68013.0,68012.0,1.85675131]
[1722269628873,0.00084,68013.0,68012.0,1.93245131]
[1722269629294,0.02389976,68013.0,68012.0,1.94445131]
[1722269629523,0.00084,68013.0,68012.0,1.94645131]
[1722269631150,0.00084,68013.0,68012.0,1.93245131]
[1722269631350,0.00084,68013.0,68012.0,1.87470457]
[1722269631632,0.00084,68013.0,68012.0,1.88870457]
[1722269631831,0.00084,68013.0,68012.0,1.87470457]
[1722269632052,0.00084,68013.0,68012.0,1.90270457]
[1722269632485,0.00084,68013.0,68012.0,1.88870457]
[1722269632952,0.02389879,68013.0,68012.0,1.90270457]
[1722269633360,0.02389879,68013.0,68012.0,3.10626957]
[1722269633566,0.02389879,68013.0,68012.0,3.49820349]
[1722269633765,0.04928,68028.0,68027.0,1.29233413]
[1722269634086,0.42926131,68039.0,68038.0,0.26791013]
[1722269634320,0.00084,68041.0,68040.0,0.440916]
[1722269634519,0.00084,68041.0,68040.0,1.19283752]
[1722269635472,0.00084,68041.0,68040.0,1.19271752]
[1722269635895,0.00084,68041.0,68040.0,1.21571752]
[1722269637556,0.00084,68041.0,68040.0,1.21744652]
[1722269637757,0.00084,68041.0,68040.0,1.57759052]
[1722269637946,0.00084,68041.0,68040.0,1.75459052]
[1722269638960,0.00084,68041.0,68040.0,1.76759052]
[1722269640479,0.00084,68041.0,68040.0,1.47364652]
[1722269641116,0.00084,68041.0,68040.0,1.46064652]
[1722269641462,0.00084,68041.0,68040.0,1.75459052]
[1722269641666,0.00084,68041.0,68040.0,1.47464652]
[1722269641885,0.00084,68041.0,68040.0,1.76859052]
[1722269642075,0.00084,68041.0,68040.0,1.47464652]
[1722269642885,0.00084,68041.0,68040.0,1.76859052]
[1722269643083,0.00084,68041.0,68040.0,1.47464652]
[1722269643288,0.00084,68041.0,68040.0,1.30644652]
[1722269643900,0.00084,68041.0,68040.0,1.01250252]
[1722269644317,0.00084,68041.0,68040.0,0.70455852]
[1722269644742,0.00084,68041.0,68040.0,1.01250252]
[1722269645138,0.00084,68041.0,68040.0,1.02150252]
[1722269645557,0.00084,68041.0,68040.0,1.03550252]
[1722269645785,0.00084,68041.0,68040.0,1.02150252]
[1722269645938,0.00084,68041.0,68040.0,1.32944652]
[1722269646139,0.00084,68041.0,68040.0,1.47494652]
[1722269646314,0.00084,68041.0,68040.0,1.46094652]
[1722269646538,0.0767,68059.0,68053.0,1.14954213]
[1722269646762,0.0767,68059.0,68053.0,1.33638826]
[1722269647004,0.0767,68059.0,68053.0,1.02156613]
[1722269647005,0.05,68056.0,68053.0,1.02156613]
[1722269647216,0.0767,68059.0,68053.0,1.04250026]
[1722269647217,0.00829,68054.0,68053.0,1.04250026]
[1722269647685,0.00765421,68054.0,68053.0,1.33638826]
[1722269648345,0.00765421,68054.0,68053.0,1.43638826]
[1722269648755,0.00765421,68054.0,68053.0,1.45938826]
[1722269648955,0.03070055,68054.0,68053.0,1.45938826]
[1722269649256,0.00765421,68054.0,68053.0,1.45938826]
[1722269649852,0.00765421,68054.0,68053.0,1.81417626]
[1722269650043,0.00765421,68054.0,68053.0,1.82817626]
[1722269650709,0.00765421,68054.0,68053.0,1.90827626]
[1722269651000,0.00765421,68054.0,68053.0,1.91027626]
[1722269651360,0.00765421,68054.0,68053.0,1.91923084]
[1722269651787,0.00765421,68054.0,68053.0,1.8754841]
[1722269652633,0.0306995,68054.0,68053.0,1.8754841]
[1722269653194,0.04913929,68067.0,68066.0,1.14934613]
[1722269653402,0.04913929,68067.0,68066.0,1.53619226]
[1722269653609,0.00828,68074.0,68069.0,0.75548113]
[1722269653765,0.00828,68074.0,68069.0,1.87861852]
[1722269654163,0.00828,68074.0,68069.0,1.88061852]
[1722269654408,0.00828,68074.0,68069.0,1.60779952]
[1722269654607,0.00828,68074.0,68069.0,1.12158052]
[1722269654812,0.00828,68074.0,68069.0,1.22158052]
[1722269655213,0.00828,68074.0,68069.0,1.23052273]
[1722269655370,0.00828,68074.0,68069.0,1.13052273]
[1722269655587,0.1437,68072.0,68069.0,1.13052273]
[1722269655848,0.12154355,68071.0,68069.0,0.53394252]
[1722269656045,0.13734587,68070.0,68069.0,0.24309939]
[1722269656252,0.84385694,68070.0,68069.0,0.15709939]
[1722269656452,1.43148694,68070.0,68069.0,0.014]
[1722269656677,1.61466442,68070.0,68069.0,0.014]
[1722269656899,0.60935701,68070.0,68069.0,0.014]
[1722269657048,0.07906587,68063.0,68062.0,0.0029378]
[1722269657284,0.12906587,68063.0,68062.0,0.14309939]
[1722269657490,0.39645494,68063.0,68062.0,0.14309939]
[1722269658099,0.39645494,68063.0,68062.0,0.16609939]
[1722269658100,0.26738907,68063.0,68062.0,0.16609939]
[1722269658299,0.12885189,68063.0,68062.0,0.92165552]
[1722269658700,0.05,68068.0,68067.0,0.146914]
[1722269658905,0.1453,68069.0,68068.0,0.834557]
[1722269659129,0.31739298,68069.0,68068.0,0.26609939]
[1722269659464,0.39645885,68069.0,68068.0,0.26609939]
[1722269660505,0.26739298,68069.0,68068.0,0.70683339]
[1722269660711,0.26739298,68069.0,68068.0,1.00065639]
[1722269660933,0.20299298,68069.0,68068.0,1.31541352]
[1722269661134,0.12209298,68069.0,68068.0,1.31541352]
[1722269661640,0.12209298,68069.0,68068.0,1.60923652]
[1722269661886,0.00828,68070.0,68069.0,1.04930013]
[1722269662206,0.00828,68070.0,68069.0,1.61121852]
[1722269663162,0.00084,68079.0,68078.0,1.54294413]
[1722269663390,0.00084,68079.0,68078.0,2.12219026]
[1722269663592,0.00084,68079.0,68078.0,1.53601026]
[1722269663790,0.00084,68079.0,68078.0,1.82979026]
[1722269663993,0.02387779,68079.0,68078.0,2.12219026]
[1722269664764,0.02387779,68079.0,68078.0,1.82979026]
[1722269665362,0.02387779,68079.0,68078.0,1.85279026]
[1722269666771,0.02387779,68079.0,68078.0,2.44097026]
[1722269667108,0.02387779,68079.0,68078.0,2.44979004]
[1722269667805,0.02387779,68079.0,68078.0,2.15601004]
[1722269668127,0.0015542,68091.0,68090.0,1.14898213]
[1722269668323,0.12203805,68091.0,68090.0,0.62450826]
[1722269668541,0.12932572,68091.0,68090.0,1.35882826]
[1722269668741,0.12203805,68091.0,68090.0,1.35882826]
[1722269668941,0.0015542,68101.0,68093.0,0.46150613]
[1722269669232,0.12203817,68094.0,68093.0,1.21503552]
[1722269669412,0.0603,68099.0,68093.0,1.21503552]
[1722269669413,0.0603,68099.0,68097.0,0.493698]
[1722269669559,0.0618542,68099.0,68098.0,1.19402839]
[1722269669770,0.18233141,68099.0,68098.0,0.90033439]
[1722269670358,0.18233141,68099.0,68098.0,1.19402839]
[1722269671758,0.20536623,68099.0,68098.0,1.20802839]
[1722269671933,0.02303482,68099.0,68098.0,1.20802839]
[1722269674735,0.02303482,68099.0,68098.0,0.91433439]
[1722269675489,0.07303482,68099.0,68098.0,0.91433439]
[1722269675689,0.02303482,68099.0,68098.0,0.91433439]
[1722269678334,0.02303482,68099.0,68098.0,0.18009939]
[1722269678593,0.02303482,68099.0,68098.0,0.91433439]
[1722269678762,0.15266015,68099.0,68098.0,0.91433439]
[1722269678997,0.15266068,68099.0,68098.0,0.91433439]
[1722269679143,0.03062681,68099.0,68098.0,0.92833439]
[1722269679519,0.14506769,68099.0,68098.0,0.92833439]
[1722269679779,0.15262374,68099.0,68098.0,0.92833439]
[1722269680531,0.15262311,68099.0,68098.0,0.92833439]
[1722269680702,0.15262381,68099.0,68098.0,1.22202839]
[1722269681233,0.00755605,68099.0,68098.0,1.22202839]
[1722269681406,0.00839605,68099.0,68098.0,1.19902839]
[1722269681636,0.30621727,68099.0,68098.0,0.31794639]
[1722269681754,0.25777147,68099.0,68098.0,0.90533439]
[1722269681953,0.26534563,68099.0,68098.0,0.90533439]
[1722269682158,0.26379143,68099.0,68098.0,0.90533439]
[1722269682786,0.19224788,68099.0,68098.0,0.92833439]
[1722269683007,0.19224788,68099.0,68098.0,1.22202839]
[1722269683208,0.06264,68099.0,68098.0,1.22202839]
[1722269685702,0.08567419,68099.0,68098.0,1.22202839]
[1722269686715,0.08567419,68099.0,68098.0,0.92833439]
[1722269687120,0.08567419,68099.0,68098.0,1.22202839]
[1722269688247,0.02387419,68099.0,68098.0,1.22202839]
[1722269689113,0.02542839,68099.0,68098.0,1.22202839]
[1722269689342,0.14590086,68099.0,68098.0,1.22202839]
[1722269689838,0.15344346,68099.0,68098.0,1.22202839]
[1722269690306,0.03141679,68099.0,68098.0,1.22202839]
[1722269690538,0.15344346,68099.0,68098.0,1.22202839]
[1722269690764,0.14590086,68099.0,68098.0,1.34296252]
[1722269690995,0.02387419,68099.0,68098.0,1.34296252]
[1722269691246,0.02387419,68099.0,68098.0,1.63665652]
[1722269691927,0.02387419,68099.0,68098.0,1.62465652]
[1722269692155,0.02387419,68099.0,68098.0,1.69965838]
[1722269692393,0.02387419,68099.0,68098.0,1.68565941]
[1722269692815,0.02387419,68099.0,68098.0,1.69965941]
[1722269693022,0.02387419,68099.0,68098.0,1.68565941]
[1722269693414,0.02387419,68099.0,68098.0,1.68365941]
[1722269693656,0.02387419,68099.0,68098.0,1.72265652]
[1722269693857,0.02387419,68099.0,68098.0,1.44296252]
[1722269694058,0.02387419,68099.0,68098.0,1.34222295]
[1722269694434,0.02387419,68099.0,68098.0,1.44222295]
[1722269694748,0.02387419,68099.0,68098.0,1.43706543]
[1722269694957,0.02387419,68099.0,68098.0,1.33706543]
[1722269696634,0.02387419,68099.0,68098.0,1.3021313]
[1722269696837,0.02387419,68099.0,68098.0,1.3161313]
[1722269697081,0.02387419,68099.0,68098.0,1.43706543]
[1722269697285,0.02387419,68099.0,68098.0,1.42306543]
[1722269697527,0.02387419,68099.0,68098.0,1.32306543]
[1722269697709,0.02387419,68099.0,68098.0,1.33706543]
[1722269698008,0.02387419,68099.0,68098.0,1.63075943]
[1722269698571,0.02387419,68099.0,68098.0,1.69176249]
[1722269698777,0.02387419,68099.0,68098.0,1.63075943]
[1722269699171,0.02387419,68099.0,68098.0,1.69655943]
[1722269699578,0.02387419,68099.0,68098.0,1.68255943]
[1722269699777,0.02387419,68099.0,68098.0,1.69655943]
[1722269699960,0.02387419,68099.0,68098.0,1.69855943]
[1722269700163,0.02387419,68099.0,68098.0,1.69655943]
[1722269700469,0.02387419,68099.0,68098.0,1.4301313]
[1722269700666,0.02387419,68099.0,68098.0,1.0134373]
[1722269700923,0.03146378,68099.0,68098.0,1.0134373]
[1722269701320,0.08146378,68099.0,68098.0,1.0134373]
[1722269701539,0.03146378,68099.0,68098.0,1.0134373]
[1722269701785,0.02387419,68099.0,68098.0,1.0134373]
[1722269702042,0.02387419,68099.0,68098.0,0.44020682]
[1722269702043,0.20348841,68099.0,68098.0,0.44020682]
[1722269702281,0.20348841,68099.0,68098.0,0.73390082]
[1722269702772,0.20348841,68099.0,68098.0,0.19335982]
[1722269703008,0.20348841,68099.0,68098.0,0.17035982]
[1722269703009,0.42826835,68099.0,68098.0,0.17035982]
[1722269703251,0.86880335,68099.0,68098.0,0.028]
[1722269703498,1.50768019,68099.0,68098.0,0.028]
[1722269703663,1.50768019,68099.0,68098.0,0.014]
[1722269703664,1.34557327,68099.0,68098.0,0.014]
[1722269703865,1.05188327,68099.0,68098.0,0.014]
[1722269704044,0.61134827,68099.0,68098.0,0.17109939]
[1722269704434,0.61134827,68099.0,68098.0,0.15709939]
[1722269704630,0.61134827,68099.0,68098.0,0.14309939]
[1722269704882,0.61134827,68099.0,68098.0,0.14809939]
[1722269705134,0.61134827,68099.0,68098.0,0.16209939]
[1722269705326,0.47977232,68099.0,68098.0,0.17109939]
[1722269706084,0.42827902,68099.0,68098.0,0.17109939]
[1722269706285,0.42827902,68099.0,68098.0,0.31794639]
[1722269706501,0.34921315,68099.0,68098.0,0.90533439]
[1722269706693,0.34921315,68099.0,68098.0,1.19902839]
[1722269706694,0.29921315,68099.0,68098.0,1.19902839]
[1722269706897,0.15351315,68099.0,68098.0,1.19902839]
[1722269707170,0.03146378,68099.0,68098.0,1.19902839]
[1722269707519,0.00084,68099.0,68098.0,1.19902839]
[1722269707724,0.02387344,68099.0,68098.0,1.19902839]
[1722269707926,0.02387344,68099.0,68098.0,0.28409939]
[1722269707927,0.21713931,68099.0,68098.0,0.28409939]
[1722269708327,0.30209153,68099.0,68098.0,0.27909939]
[1722269708844,0.30209153,68099.0,68098.0,0.29009939]
[1722269709328,0.86466195,68099.0,68098.0,0.011]
[1722269709475,0.12906587,68092.0,68091.0,0.1]
[1722269709655,0.17205076,68092.0,68091.0,0.28684613]
[1722269709855,0.13655235,68092.0,68091.0,0.28684613]
[1722269710054,0.2601578,68092.0,68091.0,0.28684613]
[1722269710264,0.28319535,68092.0,68091.0,0.28684613]
[1722269710488,0.28164115,68092.0,68091.0,0.28684613]
[1722269711105,0.28164115,68092.0,68091.0,0.32384613]
[1722269711678,0.28319535,68092.0,68091.0,0.32384613]
[1722269711883,0.28319535,68092.0,68091.0,0.33784613]
[1722269712084,0.28320013,68092.0,68091.0,0.35245048]
[1722269712588,0.28164593,68092.0,68091.0,0.33845048]
[1722269712857,0.28320013,68092.0,68091.0,0.33845048]
[1722269713056,1.52203485,68092.0,68091.0,0.014]
[1722269713174,1.27176204,68092.0,68091.0,0.014]
[1722269713380,1.23524657,68092.0,68091.0,0.014]
[1722269713582,1.16074593,68092.0,68091.0,0.014]
[1722269713781,1.27332369,68092.0,68091.0,0.014]
[1722269714244,0.89157718,68092.0,68091.0,0.014]
[1722269714442,0.47199488,68092.0,68091.0,0.014]
[1722269714597,0.42800013,68092.0,68091.0,0.15709939]
[1722269714808,0.42644593,68092.0,68091.0,0.17109939]
[1722269715150,0.42644593,68092.0,68091.0,0.34096139]
[1722269715151,0.22532403,68092.0,68091.0,0.34096139]
[1722269715353,0.22532403,68092.0,68091.0,0.91440939]
[1722269715554,0.22532403,68092.0,68091.0,0.60668539]
[1722269715555,0.3043899,68092.0,68091.0,0.60668539]
[1722269715755,0.3043899,68092.0,68091.0,0.16609939]
[1722269716116,0.3043899,68092.0,68091.0,0.16909939]
[1722269716803,0.4264501,68092.0,68091.0,0.16609939]
[1722269717199,0.4264501,68092.0,68091.0,0.17809939]
[1722269718283,0.42645298,68092.0,68091.0,0.17809939]
[1722269718825,0.42645298,68092.0,68091.0,0.32496139]
[1722269719048,0.42645298,68092.0,68091.0,0.90040939]
[1722269719049,0.02303755,68092.0,68091.0,0.90040939]
[1722269719233,0.02303755,68092.0,68091.0,1.19413339]
[1722269719426,0.03050111,68092.0,68091.0,1.20313339]
[1722269719873,0.03050111,68092.0,68091.0,1.19413339]
[1722269720071,0.03050111,68092.0,68091.0,1.20613339]
[1722269720330,0.02303755,68092.0,68091.0,1.20613339]
[1722269720704,0.02303755,68092.0,68091.0,1.22706752]
[1722269721528,0.02303755,68092.0,68091.0,1.52079152]
[1722269722302,0.02303755,68092.0,68091.0,1.22706752]
[1722269722510,0.02026192,68092.0,68091.0,1.20613339]
[1722269722712,0.05,68098.0,68095.0,0.393707]
[1722269722912,0.05,68098.0,68097.0,0.58364639]
[1722269723118,0.04283155,68098.0,68097.0,0.90034439]
[1722269723790,0.04283155,68098.0,68097.0,0.31294839]
[1722269724121,0.04283155,68098.0,68097.0,0.16609939]
[1722269724122,0.12189742,68098.0,68097.0,0.16609939]
[1722269724309,0.18269742,68098.0,68097.0,0.16609939]
[1722269725122,0.26029742,68098.0,68097.0,0.15709939]
[1722269725737,0.26029742,68098.0,68097.0,0.30394839]
[1722269725892,0.06586569,68098.0,68097.0,0.59764639]
[1722269726236,0.14493156,68098.0,68097.0,0.59764639]
[1722269726394,0.14493156,68098.0,68097.0,0.62064639]
[1722269726797,0.06586569,68098.0,68097.0,0.91434439]
[1722269726996,0.04283155,68098.0,68097.0,0.91434439]
[1722269727986,0.00084,68099.0,68098.0,0.734235]
[1722269728212,0.04367155,68099.0,68098.0,0.90033439]
[1722269728634,0.04367155,68099.0,68098.0,0.31294639]
[1722269728869,0.12273742,68099.0,68098.0,0.31294639]
[1722269729015,0.12273742,68099.0,68098.0,0.60664039]
[1722269729226,0.12273742,68099.0,68098.0,0.91333439]
[1722269730388,0.02387305,68099.0,68098.0,0.91333439]
[1722269730546,0.02387305,68099.0,68098.0,1.20702839]
[1722269730746,0.02387305,68099.0,68098.0,1.39226252]
[1722269731164,0.02387305,68099.0,68098.0,1.49226252]
[1722269731365,0.00387305,68099.0,68098.0,1.57763097]
[1722269731567,0.12189742,68108.0,68104.0,0.83417]
[1722269731770,0.12189742,68108.0,68104.0,1.05862048]
[1722269731991,0.12189742,68108.0,68107.0,0.734137]
[1722269732192,0.00828,68110.0,68109.0,0.440469]
[1722269732392,0.00828,68110.0,68109.0,0.87721439]
[1722269732594,0.01580702,68110.0,68109.0,1.19386039]
[1722269732793,0.00828,68110.0,68109.0,1.19386039]
[1722269733505,0.00828,68110.0,68109.0,1.21479452]
[1722269733837,0.00828,68110.0,68109.0,1.19386039]
[1722269734041,0.00828,68110.0,68109.0,0.90021439]
[1722269734395,0.00828,68110.0,68109.0,1.19386039]